fUST/lending_fUST_20250614
["ID","MTS","AMOUNT","RATE_DAILY","PERIOD"]
[365753516,1749880234860,-180.0,0.00021095,4]
[365753517,1749880234871,-447.53429348,0.00021095,4]
[365753518,1749880234880,-476.82779773,0.00021095,4]
[365753519,1749880234890,-460.0,0.00021095,4]
[365753520,1749880234900,-460.0,0.00021095,4]
[365753521,1749880234913,-460.0,0.00021095,4]
[365753522,1749880234923,-445.57137237,0.00021095,4]
[365753523,1749880234934,-442.64852252,0.00021095,4]
[365753524,1749880234943,-434.89830456,0.00021095,4]
[365753525,1749880234952,-444.52655013,0.00021095,4]
[365753526,1749880234962,-251.43738626,0.00021095,4]
[365753527,1749880234971,-430.0,0.00021095,4]
[365753528,1749880234981,-444.02666993,0.00021095,4]
[365753529,1749880234990,-460.0,0.00021095,4]
[365753530,1749880235000,-438.59038416,0.00021095,4]
[365753531,1749880235010,-440.0,0.00021095,4]
[365753532,1749880235019,-259.40750686,0.00021095,4]
[365753533,1749880235029,-420.0,0.00021095,4]
[365753534,1749880235038,-439.79299069,0.00021095,4]
[365753535,1749880235047,-456.03039921,0.00021095,4]
[365753536,1749880235057,-460.0,0.00021095,4]
[365753537,1749880235067,-680.57,0.00021095,4]
[365753538,1749880235076,-440.0,0.00021095,4]
[365753539,1749880235086,-455.07831358,0.00021095,4]
[365753540,1749880235095,-418.05180835,0.00021095,4]
[365753541,1749880235105,-206.18748116,0.00021095,4]
[365753542,1749880235114,-391.99573771,0.00021095,4]
[365753543,1749880235123,-460.0,0.00021095,4]
[365753544,1749880235132,-521.44884869,0.00021095,4]
[365753545,1749880235142,-440.0,0.00021095,4]
[365753546,1749880235151,-460.0,0.00021095,4]
[365753547,1749880235160,-460.0,0.00021095,4]
[365753548,1749880235170,-488.19226493,0.00021095,4]
[365753549,1749880235179,-442.20894272,0.00021095,4]
[365753550,1749880235189,-441.49459922,0.00021095,4]
[365753551,1749880235198,-460.0,0.00021095,4]
[365753552,1749880235208,-435.47436581,0.00021095,4]
[365753553,1749880235218,-460.0,0.00021095,4]
[365753554,1749880235227,-448.42795298,0.00021095,4]
[365753555,1749880235236,-440.0,0.00021095,4]
[365753556,1749880235245,-442.221883,0.00021095,4]
[365753557,1749880235255,-315.48196529,0.00021095,4]
[365753558,1749880235264,-439.35935501,0.00021095,4]
[365753559,1749880235273,-460.0,0.00021095,4]
[365753560,1749880235283,-440.0,0.00021095,4]
[365753561,1749880235292,-430.0,0.00021095,4]
[365753562,1749880235301,-411.0509089,0.00021095,4]
[365753563,1749880235310,-460.0,0.00021095,4]
[365753564,1749880235319,-430.0,0.00021095,4]
[365753565,1749880235328,-440.0,0.00021095,4]
[365753566,1749880235338,-460.0,0.00021095,4]
[365753567,1749880235347,-436.9226561,0.00021095,4]
[365753568,1749880235356,-440.0,0.00021095,4]
[365753569,1749880235366,-403.46835413,0.00021095,4]
[365753570,1749880235375,-321.0356507,0.00021095,4]
[365753571,1749880235384,-440.0,0.00021095,4]
[365753572,1749880235393,-500.0,0.00021095,4]
[365753573,1749880235402,-500.0,0.00021095,4]
[365753574,1749880235411,-500.0,0.00021095,4]
[365753575,1749880235421,-500.0,0.00021095,4]
[365753576,1749880235430,-442.8084193,0.00021095,4]
[365753577,1749880235439,-500.0,0.00021095,4]
[365753578,1749880235448,-500.0,0.00021095,4]
[365753579,1749880235457,-500.0,0.00021095,4]
[365753580,1749880235466,-500.0,0.00021095,4]
[365753581,1749880235475,-500.0,0.00021095,4]
[365753582,1749880235484,-440.0,0.00021095,4]
[365753583,1749880235493,-500.0,0.00021095,4]
[365753584,1749880235503,-500.0,0.00021095,4]
[365753585,1749880235514,-1062.95,0.000211,2]
[365753586,1749880235526,-500.55757542,0.000212,2]
[365753587,1749880235537,-327.17207669,0.00021369,4]
[365753588,1749880235548,-503.5388673,0.00021369,4]
[365753589,1749880235557,-450.14417739,0.00021369,4]
[365753590,1749880235567,-420.0,0.00021369,4]
[365753591,1749880235578,-396.79471584,0.00021369,4]
[365753592,1749880235587,-420.4203161,0.00021369,4]
[365753593,1749880235596,-430.0,0.00021369,4]
[365753594,1749880235605,-381.26193001,0.00021369,4]
[365753595,1749880235614,-468.67882235,0.00021369,4]
[365753596,1749880235623,-440.0,0.00021369,4]
[365753597,1749880235632,-460.0,0.00021369,4]
[365753598,1749880235641,-440.0,0.00021369,4]
[365753599,1749880235650,-436.33358987,0.00021369,4]
[365753600,1749880235659,-163.5050616,0.00021369,4]
[365753601,1749880235668,-433.64935096,0.00021369,4]
[365753602,1749880235677,-434.44261084,0.00021369,4]
[365753603,1749880235686,-460.0,0.00021369,4]
[365753604,1749880235695,-460.0,0.00021369,2]
[365753605,1749880235704,-670.28,0.00021369,4]
[365753606,1749880235714,-460.0,0.00021369,4]
[365753607,1749880235723,-460.0,0.00021369,4]
[365753608,1749880235732,-239.48778161,0.00021369,4]
[365753609,1749880235741,-460.0,0.00021369,4]
[365753610,1749880235750,-460.0,0.00021369,4]
[365753611,1749880235759,-460.0,0.00021369,4]
[365753612,1749880235768,-460.0,0.00021369,4]
[365753613,1749880235778,-590.73,0.00021369,4]
[365753614,1749880235787,-460.0,0.00021369,4]
[365753615,1749880235796,-440.0,0.00021369,4]
[365753616,1749880235805,-460.0,0.00021369,4]
[365753617,1749880235815,-2461.09,0.00021369,4]
[365753618,1749880235825,-440.0,0.00021369,4]
[365753619,1749880235838,-460.0,0.00021369,4]
[365753620,1749880235848,-460.0,0.00021369,4]
[365753621,1749880235857,-490.0,0.00021369,4]
[365753622,1749880235867,-460.0,0.00021369,4]
[365753623,1749880235877,-460.0,0.00021369,4]
[365753624,1749880235886,-460.0,0.00021369,4]
[365753625,1749880235895,-460.0,0.00021369,4]
[365753626,1749880235905,-460.0,0.00021369,4]
[365753627,1749880235915,-460.0,0.00021369,4]
[365753628,1749880235924,-680.57,0.00021369,4]
[365753629,1749880235934,-460.0,0.00021369,4]
[365753630,1749880235943,-460.0,0.00021369,4]
[365753631,1749880235952,-460.0,0.00021369,4]
[365753632,1749880235962,-460.0,0.00021369,4]
[365753633,1749880235971,-299.38922886,0.00021369,4]
[365753634,1749880235980,-460.0,0.00021369,4]
[365753635,1749880235990,-460.0,0.00021369,4]
[365753636,1749880235999,-460.0,0.00021369,4]
[365753637,1749880236008,-4991.5,0.000214,2]
[365753638,1749880236018,-486.15143169,0.00021405,2]
[365753639,1749880236026,-1985.83,0.00021504,2]
[365753640,1749880236036,-168.0,0.00021512,2]
[365753641,1749880236045,-184.21194098,0.00021621,2]
[365753642,1749880236054,-460.0,0.00021643,4]
[365753643,1749880236063,-7.23068107,0.00021643,4]
[365753644,1749880236163,-452.76931893,0.00021643,4]
[365753645,1749880236173,-158.62230379,0.00021643,2]
[365753646,1749880236183,-670.28,0.00021643,4]
[365753647,1749880236193,-440.0,0.00021643,4]
[365753648,1749880236202,-460.0,0.00021643,4]
[365753649,1749880236214,-460.0,0.00021643,4]
[365753650,1749880236230,-460.0,0.00021643,4]
[365753651,1749880236240,-219.0,0.00021643,4]
[365753652,1749880236249,-460.0,0.00021643,4]
[365753653,1749880236258,-460.0,0.00021643,4]
[365753654,1749880236268,-236.07649988,0.00021643,4]
[365753655,1749880236277,-337.32258705,0.00021643,4]
[365753656,1749880237905,-420.15,0.00021085,3]
[365753657,1749880237915,-427.52661546,0.00021095,4]
[365753658,1749880237924,-402.39363201,0.00021095,4]
[365753659,1749880237933,-500.0,0.00021367,2]
[365753660,1749880237943,-500.0,0.00021367,2]
[365753661,1749880237951,-201.80420956,0.00021367,2]
[365753662,1749880237963,-500.0,0.00021367,2]
[365753664,1749880237972,-500.0,0.00021367,2]
[365753665,1749880237981,-292.8093197,0.00021367,2]
[365753667,1749880237991,-2123.76741295,0.00021643,4]
[365753669,1749880238001,-460.0,0.00021643,4]
[365753671,1749880238010,-460.0,0.00021643,4]
[365753673,1749880238019,-490.0,0.00021643,4]
[365753683,1749880238122,-460.0,0.00021643,4]
[365753686,1749880238132,-460.0,0.00021643,4]
[365753688,1749880238142,-460.0,0.00021643,4]
[365753690,1749880238151,-460.0,0.00021643,4]
[365753692,1749880238160,-460.0,0.00021643,4]
[365753694,1749880238170,-460.0,0.00021643,4]
[365753696,1749880238179,-680.57,0.00021643,4]
[365753698,1749880238189,-460.0,0.00021643,4]
[365753700,1749880238199,-460.0,0.00021643,4]
[365753702,1749880238208,-460.0,0.00021643,4]
[365753704,1749880238217,-460.0,0.00021643,4]
[365753706,1749880238226,-460.0,0.00021643,4]
[365753707,1749880238235,-340.0,0.00021643,4]
[365753709,1749880238245,-398.0,0.00021659,2]
[365753711,1749880238254,-168.0,0.00021754,2]
[365753713,1749880238263,-614.74810964,0.00021774,2]
[365753715,1749880238273,-168.0,0.00021792,2]
[365753717,1749880238282,-168.0,0.00021858,2]
[365753719,1749880238292,-9091.93052012,0.000219,2]
[365753721,1749880238301,-460.0,0.00021917,4]
[365753723,1749880238310,-460.0,0.00021917,4]
[365753725,1749880238319,-670.28,0.00021917,4]
[365753727,1749880238328,-440.0,0.00021917,4]
[365753729,1749880238337,-460.0,0.00021917,4]
[365753731,1749880238346,-460.0,0.00021917,4]
[365753733,1749880238355,-460.0,0.00021917,4]
[365753735,1749880238366,-2461.09,0.00021917,4]
[365753737,1749880238375,-460.0,0.00021917,4]
[365753739,1749880238384,-490.0,0.00021917,4]
[365753741,1749880238393,-351.87259883,0.00021917,4]
[365753743,1749880238402,-460.0,0.00021917,4]
[365753745,1749880238411,-460.0,0.00021917,4]
[365753747,1749880238420,-223.85,0.00021917,4]
[365753749,1749880238429,-460.0,0.00021917,4]
[365753751,1749880238439,-460.0,0.00021917,4]
[365753753,1749880238447,-460.0,0.00021917,4]
[365753755,1749880238457,-680.57,0.00021917,4]
[365753757,1749880238468,-460.0,0.00021917,4]
[365753759,1749880238477,-460.0,0.00021917,4]
[365753761,1749880238486,-460.0,0.00021917,4]
[365753763,1749880238495,-236.45786302,0.00021917,4]
[365753765,1749880238505,-691.0,0.00021975,2]
[365753767,1749880238514,-113071.47,0.00022,7]
[365753769,1749880238523,-167.0,0.00022,2]
[365753771,1749880238533,-207.4,0.00022009,2]
[365753773,1749880238542,-537.978401,0.00022022,2]
[365753775,1749880238551,-460.0,0.00022191,4]
[365753777,1749880238560,-460.0,0.00022191,4]
[365753779,1749880238570,-670.28,0.00022191,4]
[365753781,1749880238579,-460.0,0.00022191,4]
[365753782,1749880238589,-460.0,0.00022191,4]
[365753784,1749880238599,-460.0,0.00022191,4]
[365753786,1749880238608,-2461.09,0.00022191,4]
[365753788,1749880238617,-460.0,0.00022191,4]
[365753791,1749880238626,-490.0,0.00022191,4]
[365753793,1749880238635,-460.0,0.00022191,4]
[365753794,1749880238645,-460.0,0.00022191,4]
[365753796,1749880238654,-460.0,0.00022191,4]
[365753798,1749880238663,-460.0,0.00022191,4]
[365753800,1749880238673,-460.0,0.00022191,4]
[365753802,1749880238682,-680.57,0.00022191,4]
[365753804,1749880238691,-460.0,0.00022191,4]
[365753806,1749880238700,-460.0,0.00022191,4]
[365753808,1749880238709,-460.0,0.00022191,4]
[365753810,1749880238720,-160.0,0.00022256,2]
[365753813,1749880238730,-213.28201367,0.00022272,2]
[365753815,1749880238739,-160.0,0.00022272,2]
[365753816,1749880238748,-229.82479369,0.00022272,2]
[365753818,1749880238757,-835.41710878,0.00022272,2]
[365753820,1749880238767,-160.0,0.00022272,2]
[365753823,1749880238776,-160.0,0.00022272,2]
[365753824,1749880238786,-160.0,0.00022283,2]
[365753826,1749880238796,-1062.95,0.000223,7]
[365753828,1749880238806,-840.3,0.00022455,3]
[365753831,1749880238815,-840.3,0.00022455,3]
[365753832,1749880238825,-379.58033034,0.00022465,4]
[365753834,1749880238838,-460.0,0.00022465,4]
[365753837,1749880238848,-670.28,0.00022465,4]
[365753838,1749880238857,-460.0,0.00022465,4]
[365753840,1749880238867,-460.0,0.00022465,4]
[365753842,1749880238876,-460.0,0.00022465,4]
[365753844,1749880238886,-2461.09,0.00022465,4]
[365753845,1749880238895,-460.0,0.00022465,4]
[365753847,1749880238905,-490.0,0.00022465,4]
[365753848,1749880238915,-460.0,0.00022465,4]
[365753849,1749880238924,-518.65377666,0.00022465,4]
[365753850,1749880238935,-460.0,0.00022465,4]
[365753851,1749880238946,-460.0,0.00022465,4]
[365753852,1749880238956,-460.0,0.00022465,4]
[365753853,1749880238967,-680.57,0.00022465,4]
[365753854,1749880238976,-460.0,0.00022465,4]
[365753855,1749880238985,-369.69,0.00022465,4]
[365753856,1749880238994,-460.0,0.00022465,4]
[365753857,1749880239003,-160.0,0.00022473,2]
[365753858,1749880239012,-4991.5,0.000225,7]
[365753859,1749880239021,-163.742356,0.00022505,2]
[365753860,1749880239032,-614.74810964,0.00022553,2]
[365753861,1749880239041,-460.0,0.00022739,4]
[365753862,1749880239051,-670.28,0.00022739,4]
[365753863,1749880239060,-460.0,0.00022739,4]
[365753864,1749880239070,-460.0,0.00022739,4]
[365753865,1749880239079,-460.0,0.00022739,4]
[365753866,1749880239088,-2461.09,0.00022739,4]
[365753867,1749880239098,-460.0,0.00022739,4]
[365753868,1749880239108,-490.0,0.00022739,4]
[365753869,1749880239117,-460.0,0.00022739,4]
[365753870,1749880239127,-460.0,0.00022739,4]
[365753871,1749880239136,-460.0,0.00022739,4]
[365753872,1749880239145,-460.0,0.00022739,4]
[365753873,1749880239154,-680.57,0.00022739,4]
[365753874,1749880239164,-208.30805919,0.00022739,4]
[365753875,1749880239174,-460.0,0.00022739,4]
[365753876,1749880239184,-424.40141186,0.00022748,2]
[365753877,1749880239193,-500.0,0.00022857,2]
[365753878,1749880239204,-502.04104999,0.00022857,2]
[365753879,1749880239215,-500.0,0.00022857,2]
[365753880,1749880239226,-420.0,0.00022933,2]
[365753881,1749880239235,-268.0,0.00022933,2]
[365753882,1749880239244,-420.0,0.00022933,2]
[365753883,1749880239253,-501.06245016,0.00022988,2]
[365753884,1749880239263,-200.0,0.00023,2]
[365753885,1749880239272,-460.0,0.00023013,4]
[365753886,1749880239281,-670.28,0.00023013,4]
[365753887,1749880239290,-460.0,0.00023013,4]
[365753888,1749880239299,-460.0,0.00023013,4]
[365753889,1749880239308,-2461.09,0.00023013,4]
[365753890,1749880239317,-460.0,0.00023013,4]
[365753891,1749880239327,-490.0,0.00023013,4]
[365753892,1749880239338,-460.0,0.00023013,4]
[365753893,1749880239350,-460.0,0.00023013,4]
[365753894,1749880239360,-460.0,0.00023013,4]
[365753895,1749880239371,-460.0,0.00023013,4]
[365753896,1749880239380,-680.57,0.00023013,4]
[365753897,1749880239389,-460.0,0.00023013,4]
[365753898,1749880239398,-113071.47,0.000231,7]
[365753899,1749880239407,-255.86,0.00023287,4]
[365753900,1749880239417,-670.28,0.00023287,4]
[365753901,1749880239426,-460.0,0.00023287,4]
[365753902,1749880239436,-460.0,0.00023287,4]
[365753903,1749880239445,-2461.09,0.00023287,4]
[365753904,1749880239455,-490.0,0.00023287,4]
[365753906,1749880239465,-460.0,0.00023287,4]
[365753908,1749880239474,-460.0,0.00023287,4]
[365753910,1749880239487,-460.0,0.00023287,4]
[365753912,1749880239496,-460.0,0.00023287,4]
[365753914,1749880239506,-680.57,0.00023287,4]
[365753915,1749880239515,-460.0,0.00023287,4]
[365753916,1749880239524,-614.74810964,0.00023331,2]
[365753917,1749880239534,-215.0738,0.00023378,2]
[365753918,1749880239544,-9091.93052012,0.0002338,2]
[365753919,1749880239553,-509.09225624,0.00023405,2]
[365753920,1749880239564,-442.46825142,0.00023405,2]
[365753921,1749880239575,-3971.65,0.00023459,2]
[365753922,1749880239585,-1062.95,0.000235,7]
[365753923,1749880239593,-670.28,0.00023561,4]
[365753924,1749880239604,-460.0,0.00023561,4]
[365753925,1749880239614,-460.0,0.00023561,4]
[365753926,1749880239624,-2461.09,0.00023561,4]
[365753927,1749880239634,-490.0,0.00023561,4]
[365753928,1749880239644,-460.0,0.00023561,4]
[365753929,1749880239653,-460.0,0.00023561,4]
[365753930,1749880239662,-460.0,0.00023561,4]
[365753931,1749880239672,-460.0,0.00023561,4]
[365753932,1749880239681,-680.57,0.00023561,4]
[365753933,1749880239690,-300.48702511,0.00023561,4]
[365753934,1749880239699,-4991.5,0.000236,7]
[365753935,1749880239708,-151.0,0.000236,10]
[365753936,1749880239718,-160.0,0.00023626,2]
[365753937,1749880239727,-200.0,0.00023646,2]
[365753939,1749880239736,-200.0,0.00023669,2]
[365753941,1749880239745,-500.0,0.00023726,2]
[365753942,1749880239755,-500.0,0.00023726,2]
[365753943,1749880239764,-500.0,0.00023726,2]
[365753944,1749880239773,-500.0,0.00023726,2]
[365753945,1749880239784,-501.91821307,0.0002378,9]
[365753946,1749880239793,-500.0,0.0002378,9]
[365753947,1749880239802,-964.0,0.00023783,2]
[365753948,1749880239811,-2160.0,0.00023783,2]
[365753949,1749880239821,-653.0,0.00023783,2]
[365753950,1749880239834,-364.628,0.00023783,2]
[365753951,1749880239843,-405.0,0.00023783,2]
[365753953,1749880239853,-334.8730237,0.000238,3]
[365753955,1749880239862,-2023.41,0.000238,2]
[365753957,1749880239873,-600.0,0.00023808,2]
[365753959,1749880239882,-1319.476089,0.00023827,3]
[365753961,1749880239891,-670.28,0.00023835,4]
[365753962,1749880239902,-460.0,0.00023835,4]
[365753965,1749880239911,-460.0,0.00023835,4]
[365753966,1749880239921,-2461.09,0.00023835,4]
[365753967,1749880239931,-490.0,0.00023835,4]
[365753968,1749880239940,-460.0,0.00023835,4]
[365753969,1749880239950,-460.0,0.00023835,4]
[365753970,1749880239960,-460.0,0.00023835,4]
[365753971,1749880239971,-460.0,0.00023835,4]
[365753972,1749880239981,-680.57,0.00023835,4]
[365753973,1749880239990,-151.0,0.000239,7]
[365753974,1749880240000,-500.0,0.00023973,2]
[365753975,1749880240009,-574.97211964,0.00023973,2]
[365753976,1749880240019,-500.0,0.00023973,2]
[365753977,1749880240029,-500.0,0.00023973,2]
[365753978,1749880240038,-152.84253909,0.00023973,2]
[365753979,1749880240047,-500.0,0.00023973,2]
[365753980,1749880240057,-509.52386993,0.00023973,2]
[365753981,1749880240067,-501.54253158,0.00023973,2]
[365753982,1749880240077,-500.0,0.00023973,2]
[365753983,1749880240086,-500.0,0.00023973,2]
[365753984,1749880240096,-501.19077422,0.00023973,2]
[365753985,1749880240105,-600.0,0.00023973,2]
[365753986,1749880240114,-500.0,0.00023973,2]
[365753987,1749880240124,-500.0,0.00023973,2]
[365753988,1749880240134,-500.76973816,0.00023973,2]
[365753989,1749880240143,-500.79880931,0.00023973,2]
[365753990,1749880240152,-242.91572388,0.00023973,2]
[365753991,1749880240161,-500.0,0.00023973,2]
[365753992,1749880240171,-500.0,0.00023973,2]
[365753993,1749880240180,-500.0,0.00023973,2]
[365753994,1749880240190,-1493.60396083,0.00023985,2]
[365753995,1749880240199,-48373.16781464,0.00024,42]
[365753996,1749880240209,-132605.99761388,0.00024,2]
[365753997,1749880240219,-85795.89783701,0.00024,2]
[365753998,1749880240228,-151.0,0.00024,7]
[365753999,1749880240236,-1745.0,0.00024,3]
[365754000,1749880240245,-317.0,0.00024,3]
[365754001,1749880240254,-317.0,0.00024,3]
[365754002,1749880240263,-317.0,0.00024,3]
[365754003,1749880240273,-317.0,0.00024,3]
[365754004,1749880240282,-179.725301,0.00024,7]
[365754005,1749880240292,-179.725301,0.00024,7]
[365754006,1749880240301,-150.0,0.00024,5]
[365754007,1749880240310,-1746.0,0.00024,3]
[365754008,1749880240320,-1746.0,0.00024,3]
[365754009,1749880240330,-151.0,0.00024,3]
[365754010,1749880240339,-1746.0,0.00024,3]
[365754011,1749880240348,-151.0,0.00024,3]
[365754012,1749880240357,-166.0,0.00024,3]
[365754013,1749880240367,-1746.0,0.00024,3]
[365754014,1749880240376,-171.0,0.00024,3]
[365754015,1749880240385,-151.0,0.00024,3]
[365754016,1749880240394,-166.0,0.00024,3]
[365754017,1749880240403,-1746.0,0.00024,3]
[365754018,1749880240499,-151.0,0.00024,3]
[365754019,1749880240508,-172.0,0.00024,3]
[365754020,1749880240518,-171.0,0.00024,3]
[365754021,1749880240527,-1746.0,0.00024,3]
[365754022,1749880240536,-151.0,0.00024,3]
[365754023,1749880240546,-243.93217632,0.00024,3]
[365754024,1749880240555,-1746.0,0.00024,3]
[365754025,1749880240564,-151.0,0.00024,3]
[365754026,1749880240575,-1746.0,0.00024,3]
[365754027,1749880240585,-151.0,0.00024,3]
[365754028,1749880240595,-1746.0,0.00024,3]
[365754029,1749880240604,-151.0,0.00024,3]
[365754030,1749880240614,-1746.0,0.00024,3]
[365754031,1749880240624,-151.0,0.00024,3]
[365754032,1749880240634,-1746.0,0.00024,3]
[365754033,1749880240644,-151.0,0.00024,3]
[365754034,1749880240654,-151.0,0.00024,3]
[365754035,1749880240664,-1746.0,0.00024,3]
[365754036,1749880240675,-151.0,0.00024,3]
[365754037,1749880240683,-1746.0,0.00024,3]
[365754038,1749880240692,-151.0,0.00024,3]
[365754039,1749880240703,-1746.0,0.00024,3]
[365754040,1749880240714,-151.0,0.00024,3]
[365754041,1749880240723,-1746.0,0.00024,3]
[365754042,1749880240733,-151.0,0.00024,3]
[365754043,1749880240743,-1746.0,0.00024,3]
[365754044,1749880240752,-151.0,0.00024,3]
[365754045,1749880240761,-1746.0,0.00024,3]
[365754046,1749880240771,-151.0,0.00024,3]
[365754047,1749880240780,-1746.0,0.00024,3]
[365754048,1749880240789,-317.0,0.00024,3]
[365754049,1749880240798,-151.0,0.00024,3]
[365754050,1749880240807,-1746.0,0.00024,3]
[365754051,1749880240816,-151.0,0.00024,3]
[365754052,1749880240827,-1746.0,0.00024,3]
[365754053,1749880240838,-151.0,0.00024,3]
[365754054,1749880240847,-1746.0,0.00024,3]
[365754055,1749880240856,-151.0,0.00024,3]
[365754056,1749880240866,-1746.0,0.00024,3]
[365754057,1749880240876,-151.0,0.00024,3]
[365754058,1749880240886,-1746.0,0.00024,3]
[365754059,1749880240895,-151.0,0.00024,3]
[365754060,1749880240905,-1746.0,0.00024,3]
[365754061,1749880240915,-151.0,0.00024,3]
[365754062,1749880240924,-1746.0,0.00024,3]
[365754063,1749880240933,-151.0,0.00024,3]
[365754064,1749880240942,-1746.0,0.00024,3]
[365754065,1749880240951,-151.0,0.00024,3]
[365754066,1749880240960,-1746.0,0.00024,3]
[365754067,1749880240970,-1746.0,0.00024,3]
[365754068,1749880240978,-317.0,0.00024,3]
[365754069,1749880240989,-789.96256108,0.00024,3]
[365754070,1749880240998,-317.0,0.00024,3]
[365754071,1749880241007,-317.0,0.00024,3]
[365754072,1749880241016,-317.0,0.00024,3]
[365754073,1749880241026,-317.0,0.00024,3]
[365754074,1749880241035,-317.0,0.00024,3]
[365754075,1749880241044,-317.0,0.00024,3]
[365754076,1749880241053,-317.0,0.00024,3]
[365754077,1749880241062,-317.0,0.00024,3]
[365754078,1749880241072,-317.0,0.00024,3]
[365754079,1749880241080,-317.0,0.00024,3]
[365754080,1749880241090,-317.0,0.00024,3]
[365754081,1749880241099,-317.0,0.00024,3]
[365754082,1749880241108,-317.0,0.00024,3]
[365754083,1749880241118,-317.0,0.00024,3]
[365754084,1749880241127,-317.0,0.00024,3]
[365754085,1749880241136,-317.0,0.00024,3]
[365754086,1749880241146,-317.0,0.00024,3]
[365754087,1749880241155,-317.0,0.00024,3]
[365754088,1749880241165,-317.0,0.00024,3]
[365754089,1749880241174,-317.0,0.00024,3]
[365754090,1749880241183,-317.0,0.00024,3]
[365754091,1749880241193,-317.0,0.00024,3]
[365754092,1749880241202,-317.0,0.00024,3]
[365754093,1749880241211,-317.0,0.00024,3]
[365754094,1749880241222,-317.0,0.00024,3]
[365754095,1749880241231,-317.0,0.00024,3]
[365754096,1749880241240,-317.0,0.00024,3]
[365754097,1749880241250,-317.0,0.00024,3]
[365754098,1749880241259,-317.0,0.00024,3]
[365754099,1749880241269,-317.0,0.00024,3]
[365754100,1749880241278,-317.0,0.00024,3]
[365754101,1749880241288,-317.0,0.00024,3]
[365754102,1749880241297,-317.0,0.00024,3]
[365754103,1749880241318,-288.57454196,0.00024,3]
[365754104,1749880241327,-160.0,0.00024,3]
[365754105,1749880241339,-835.41710878,0.00024,3]
[365754106,1749880241348,-835.41710878,0.00024,7]
[365754107,1749880241357,-424.40141186,0.00024,3]
[365754108,1749880241366,-424.40141186,0.00024,7]
[365754109,1749880241385,-229.82479369,0.00024,3]
[365754110,1749880241395,-229.82479369,0.00024,7]
[365754111,1749880241404,-158.37,0.00024,2]
[365754112,1749880241414,-160.0,0.00024,3]
[365754113,1749880241425,-160.0,0.00024,7]
[365754114,1749880241435,-167.63761845,0.00024009,2]
[365754115,1749880241446,-1063.24869493,0.00024056,2]
[365754116,1749880241456,-670.28,0.00024109,4]
[365754117,1749880241465,-460.0,0.00024109,4]
[365754118,1749880241475,-460.0,0.00024109,4]
[365754119,1749880241484,-2461.09,0.00024109,4]
[365754120,1749880241493,-490.0,0.00024109,4]
[365754121,1749880241503,-460.0,0.00024109,4]
[365754122,1749880241513,-204.62217172,0.00024109,4]
[365754123,1749880241523,-460.0,0.00024109,4]
[365754124,1749880241533,-460.0,0.00024109,4]